bitfinex/quotes_ETHUSD_20240602
["timestamp","ask_amount","ask_price","bid_price","bid_amount"]
[1717286401768,0.55,3817.9,3817.5,0.07487873]
[1717286401962,0.55,3817.9,3817.6,0.705]
[1717286403498,0.55,3817.9,3817.5,0.07487873]
[1717286403499,2.3016,3817.8,3817.5,0.07487873]
[1717286403674,0.55,3817.7,3817.5,0.07487873]
[1717286406901,0.55,3817.7,3817.5,0.77987873]
[1717286407600,0.55,3817.7,3817.5,0.07487873]
[1717286408304,0.55,3817.7,3817.5,0.77987873]
[1717286408692,3.75,3818.0,3817.5,0.77987873]
[1717286408693,0.55,3817.8,3817.5,0.77987873]
[1717286408867,0.55,3817.9,3817.8,0.705]
[1717286409068,1.412,3817.9,3817.8,0.705]
[1717286411012,0.55,3817.9,3817.8,0.705]
[1717286412471,0.75,3818.0,3817.8,0.705]
[1717286413113,0.75,3818.0,3817.9,2.4904]
[1717286413439,0.002,3985.9,3817.9,2.4904]
[1717286413440,0.75,3818.2,3817.9,2.4904]
[1717286413618,0.75,3818.2,3818.0,0.705]
[1717286413784,7.32,3818.6,3818.1,0.31954]
[1717286414116,0.75,3818.3,3817.9,2.4904]
[1717286414273,12.48,3819.0,3817.9,2.4904]
[1717286414274,12.48,3819.0,3818.2,0.705]
[1717286414474,12.48,3819.0,3817.9,2.4904]
[1717286414475,9.6644,3819.1,3818.8,0.705]
[1717286414682,0.75,3818.9,3818.8,0.705]
[1717286415076,0.75,3818.9,3817.9,2.4904]
[1717286415276,0.75,3818.9,3818.6,0.705]
[1717286415777,0.55,3818.8,3818.6,0.705]
[1717286416911,0.55,3818.8,3817.9,2.4904]
[1717286417113,0.55,3818.8,3818.3,0.705]
[1717286418099,0.55,3818.8,3818.4,0.07463761]
[1717286420322,0.55,3818.8,3818.3,0.705]
[1717286420821,2.3444,3818.7,3817.8,0.705]
[1717286420985,0.55,3818.6,3817.8,0.705]
[1717286421187,0.75,3818.1,3817.9,0.07460141]
[1717286421419,0.75,3818.1,3817.7,2.4904]
[1717286421420,0.75,3818.1,3818.0,0.705]
[1717286421721,1.3,3818.1,3818.0,0.705]
[1717286423409,1.3,3818.1,3818.0,1.02454]
[1717286423410,0.75,3818.1,3818.0,1.02454]
[1717286423597,7.32,3818.7,3818.0,1.02454]
[1717286423803,0.75,3818.4,3818.3,0.705]
[1717286424125,1.3,3818.4,3818.3,0.705]
[1717286430611,0.55,3818.4,3818.3,0.705]
[1717286430797,0.55,3818.6,3818.3,0.705]
[1717286430998,3.36884,3818.5,3818.3,0.705]
[1717286431215,0.55,3818.4,3818.3,0.705]
[1717286431426,0.55,3818.4,3817.7,2.4904]
[1717286431615,0.55,3818.4,3818.2,0.705]
[1717286433115,2.61896,3818.3,3818.2,0.705]
[1717286433317,3.16896,3818.3,3818.2,0.705]
[1717286437460,2.6193,3817.8,3817.7,2.4904]
[1717286437741,2.6193,3817.8,3817.7,3.1954]
[1717286437973,2.6193,3817.8,3817.7,3.26978882]
[1717286438785,2.6193,3817.8,3817.7,3.5967677]
[1717286443305,2.6193,3817.8,3817.7,3.26978882]
[1717286444380,2.6193,3817.8,3817.7,0.77938882]
[1717286444771,2.6193,3817.8,3817.7,0.705]
[1717286445525,2.61972,3817.2,3817.1,2.3169176]
[1717286445695,2.61972,3817.2,3817.1,3.0219176]
[1717286445864,2.61972,3817.2,3817.1,3.09401181]
[1717286447289,2.61972,3817.2,3817.1,3.44442071]
[1717286454802,2.61972,3817.2,3817.1,1.18862071]
[1717286458110,2.61972,3817.2,3817.1,0.13321181]
[1717286458307,2.61972,3817.2,3817.1,0.83821181]
[1717286459713,2.61972,3817.2,3817.1,0.13321181]
[1717286460033,3.16972,3817.2,3817.1,0.7661176]
[1717286460181,2.61972,3817.2,3817.1,0.7661176]
[1717286460493,2.61972,3817.2,3817.1,0.83844724]
[1717286462680,2.61972,3817.2,3817.1,1.19725969]
[1717286466206,2.61953,3817.5,3817.1,1.19725969]
[1717286466538,2.61953,3817.5,3817.4,0.705]
[1717286467080,2.61953,3817.5,3817.4,0.77726571]
[1717286483559,2.61953,3817.5,3817.4,0.705]
[1717286490278,2.61969,3817.3,3817.1,0.47122227]
[1717286490652,2.61969,3817.3,3817.2,0.77731929]
[1717286492679,2.61969,3817.3,3817.2,0.07231929]
[1717286492995,3.107279,3817.3,3817.2,0.705]
[1717286493197,3.107279,3817.3,3817.1,0.47122227]
[1717286493198,2.61969,3817.3,3817.1,0.47122227]
[1717286493405,2.61969,3817.3,3817.2,0.705]
[1717286497080,2.61969,3817.3,3817.2,16.405]
[1717286497423,2.61969,3817.3,3817.2,16.47736856]
[1717286501620,2.61969,3817.3,3817.2,18.17222764]
[1717286505437,2.61969,3817.3,3817.2,16.47736856]
[1717286509943,2.61969,3817.3,3817.2,15.77236856]
[1717286510312,2.61969,3817.3,3817.2,16.47736856]
[1717286527306,2.61969,3817.3,3817.2,15.77236856]
[1717286527806,2.61969,3817.3,3817.2,16.47736856]
[1717286534201,2.61969,3817.3,3817.2,20.44232764]
[1717286534401,2.61969,3817.3,3817.2,18.17222764]
[1717286534812,2.61969,3817.3,3817.2,15.77236856]
[1717286534989,2.61969,3817.3,3817.2,16.47736856]
[1717286536321,2.61969,3817.3,3817.2,15.77236856]
[1717286536508,2.61969,3817.3,3817.2,16.47736856]
[1717286542287,2.61969,3817.3,3817.2,15.77236856]
[1717286542467,2.61969,3817.3,3817.2,16.47736856]
[1717286558327,2.61969,3817.3,3817.2,15.77236856]
[1717286558606,3.16969,3817.3,3817.2,16.47736856]
[1717286569135,5.56479,3817.3,3817.2,15.77236856]
[1717286569309,5.56479,3817.3,3817.2,16.47736856]
[1717286569696,5.56479,3817.3,3817.2,15.77236856]
[1717286575141,8.18448,3817.3,3817.2,15.77236856]
[1717286575304,10.014876,3817.3,3817.2,15.77236856]
[1717286575508,10.014876,3817.3,3817.2,15.7]
[1717286575700,10.014876,3817.3,3817.2,15.77256299]
[1717286579838,12.634566,3817.3,3817.2,15.77256299]
[1717286582248,3.36969,3817.3,3817.2,16.47756299]
[1717286582406,5.78199,3817.3,3817.2,15.77256299]
[1717286582744,5.78199,3817.3,3817.2,16.47756299]
[1717286583506,6.33199,3817.3,3817.2,16.47756299]
[1717286583907,6.33199,3817.3,3817.2,15.77256299]
[1717286586015,8.95164,3817.3,3817.2,15.77256299]
[1717286586457,3.91965,3817.3,3817.2,15.77256299]
[1717286599150,6.5393,3817.3,3817.2,15.77256299]
[1717286599335,3.91965,3817.3,3817.2,15.77256299]
[1717286606250,6.32705,3817.3,3817.2,15.77256299]
[1717286606677,8.9467,3817.3,3817.2,15.77256299]
[1717286608674,3.91965,3817.3,3817.2,16.47756299]
[1717286610479,3.91965,3817.3,3817.2,15.77256299]
[1717286612980,3.91965,3817.3,3817.2,16.47756299]
[1717286616454,3.16965,3817.3,3817.2,16.47756299]
[1717286616663,2.61965,3817.3,3817.2,18.13143105]
[1717286621467,2.61965,3817.3,3817.2,20.43183105]
[1717286625017,2.61965,3817.3,3817.2,19.72683105]
[1717286625215,2.61965,3817.3,3817.2,20.43183105]
[1717286628315,2.61944,3817.6,3817.2,20.43183105]
[1717286628503,2.61944,3817.6,3817.5,0.705]
[1717286628891,2.61944,3817.6,3817.5,0.77513237]
[1717286629904,7.32,3817.9,3817.5,0.77513237]
[1717286630113,7.32,3817.9,3817.5,0.07013237]
[1717286630114,2.61944,3817.6,3817.5,0.07013237]
[1717286630312,2.61944,3817.6,3817.5,0.705]
[1717286630512,2.61944,3817.6,3817.5,2.85060186]
[1717286636216,2.61944,3817.6,3817.5,5.18550186]
[1717286640227,2.61944,3817.6,3817.5,2.85060186]
[1717286643042,2.61944,3817.6,3817.5,2.85060186]
[1717286645245,2.61944,3817.6,3817.5,5.22360186]
[1717286646478,2.61944,3817.6,3817.5,2.85060186]
[1717286646647,2.61944,3817.6,3817.5,2.14560186]
[1717286646810,2.61944,3817.6,3817.5,2.85060186]
[1717286652838,2.61944,3817.6,3817.5,18.55060186]
[1717286664667,2.61926,3817.9,3817.5,18.55060186]
[1717286664966,2.61926,3817.9,3817.8,0.705]
[1717286665172,3.16926,3817.9,3817.8,0.705]
[1717286665369,0.75,3818.0,3817.8,0.77487448]
[1717286665557,2.61905,3818.2,3817.8,0.77487448]
[1717286665761,7.32,3818.4,3817.5,18.0957]
[1717286665762,2.61922,3818.0,3817.5,18.0957]
[1717286666065,2.61922,3818.0,3817.9,0.77485318]
[1717286666248,2.61922,3818.0,3817.9,0.705]
[1717286666474,2.61922,3818.0,3817.9,0.77485318]
[1717286666963,2.61922,3818.0,3817.9,0.06985318]
[1717286667165,2.61922,3818.0,3817.9,0.705]
[1717286667364,2.61922,3818.0,3817.9,0.77485318]
[1717286669552,2.61922,3818.0,3817.9,1.0332955]
[1717286671680,7.32,3818.4,3817.9,1.0332955]
[1717286671985,2.61897,3818.3,3817.9,0.3282955]
[1717286672199,2.61897,3818.3,3818.2,0.705]
[1717286677403,2.61897,3818.3,3818.2,0.77441785]
[1717286679306,2.3183,3818.6,3818.3,13.08103]
[1717286679517,0.75,3818.5,3818.3,13.08103]
[1717286679838,2.61889,3818.4,3818.3,13.08103]
[1717286680051,3.16889,3818.4,3818.3,13.08103]
[1717286681832,3.16889,3818.4,3818.3,13.0766048]
[1717286683419,3.16889,3818.4,3818.3,13.7816048]
[1717286685251,3.16889,3818.4,3818.3,13.85100133]
[1717286686143,3.16889,3818.4,3818.3,13.14600133]
[1717286686312,3.16889,3818.4,3818.3,13.85100133]
[1717286700453,2.66889,3818.4,3818.3,13.85100133]
[1717286703374,8.612071,3818.4,3818.3,13.14600133]
[1717286708374,7.77648,3818.4,3818.3,13.14600133]
[1717286709839,5.28778,3818.4,3818.3,13.14600133]
[1717286712851,2.66889,3818.4,3818.3,13.14600133]
[1717286713051,2.11889,3818.4,3818.3,13.14600133]
[1717286728716,2.11889,3818.4,3818.3,15.52260133]
[1717286728928,2.11889,3818.4,3818.3,17.07596493]
[1717286729227,2.11889,3818.4,3818.3,17.14522769]
[1717286731571,2.11889,3818.4,3818.3,17.19530686]
[1717286736484,2.6187,3818.7,3818.3,17.19530686]
[1717286736645,2.6187,3818.7,3818.6,0.705]
[1717286736848,2.6187,3818.7,3818.6,2.49503069]
[1717286737088,2.6187,3818.7,3818.6,2.61422016]
[1717286745671,3.3687,3818.7,3818.6,2.61422016]
[1717286753095,3.3687,3818.7,3818.6,0.82418947]
[1717286759740,5.6728,3818.7,3818.6,0.82418947]
[1717286760042,5.6728,3818.7,3818.6,13.90079427]
[1717286760227,3.3687,3818.7,3818.6,13.90079427]
[1717286760968,8.8415,3818.7,3818.6,13.19579427]
[1717286761104,12.40878,3818.7,3818.6,13.19579427]
[1717286761447,12.40878,3818.7,3818.6,13.0766048]
[1717286761661,12.40878,3818.7,3818.6,13.1957533]
[1717286761808,10.10468,3818.7,3818.6,13.1957533]
[1717286762009,9.5374,3818.7,3818.6,13.1957533]
[1717286762811,6.9187,3818.7,3818.6,13.1957533]
[1717286763003,6.9187,3818.7,3818.6,13.0766048]
[1717286763208,6.9187,3818.7,3818.6,13.19584886]
[1717286766121,9.53739,3818.7,3818.6,13.19584886]
[1717286772278,11.84149,3818.7,3818.6,13.19584886]
[1717286772587,11.84149,3818.7,3818.6,13.0766048]
[1717286772957,11.84149,3818.7,3818.6,13.19589529]
[1717286783303,9.53739,3818.7,3818.6,13.19589529]
[1717286791004,6.91869,3818.7,3818.6,13.19589529]
[1717286809470,12.02548,3818.7,3818.6,13.19589529]
[1717286810263,9.40679,3818.7,3818.6,13.19589529]
[1717286812265,6.91869,3818.7,3818.6,13.19589529]
[1717286812970,9.53738,3818.7,3818.6,13.19589529]
[1717286819391,13.111328,3818.7,3818.6,13.19589529]
[1717286821677,11.90878,3818.7,3818.6,13.19589529]
[1717286823865,9.53738,3818.7,3818.6,13.19589529]
[1717286824790,11.82398,3818.7,3818.6,13.19589529]
[1717286825290,11.82398,3818.7,3818.6,13.0766048]
[1717286825653,11.82398,3818.7,3818.6,13.18417624]
[1717286826687,9.53738,3818.7,3818.6,13.18417624]
[1717286829699,6.91869,3818.7,3818.6,13.18417624]
[1717286830060,7.48493675,3818.7,3818.6,13.18417624]
[1717286830260,3.91869,3818.7,3818.6,13.18417624]
[1717286836904,3.91869,3818.7,3818.6,13.0766048]
[1717286837206,3.91869,3818.7,3818.6,13.18420073]
[1717286844405,3.36869,3818.7,3818.6,13.18420073]
[1717286844571,3.36869,3818.7,3818.6,14.5731208]
[1717286847796,3.36869,3818.7,3818.6,13.18420073]
[1717286856127,2.61869,3818.7,3818.6,15.58670073]
[1717286857325,2.61869,3818.7,3818.6,16.29170073]
[1717286866599,2.61869,3818.7,3818.6,13.88920073]
[1717286867303,2.61869,3818.7,3818.6,15.2781208]
[1717286868342,2.61849,3819.0,3818.7,2.4025]
[1717286868543,2.61849,3819.0,3818.8,0.705]
[1717286868751,2.61849,3819.0,3818.8,0.1073875]
[1717286868933,3.36849,3819.0,3818.9,0.705]
[1717286869110,3.36849,3819.0,3818.9,0.8123649]
[1717286872347,5.85889,3819.0,3818.9,0.1073649]
[1717286872511,5.85889,3819.0,3818.9,0.8123649]
[1717286872957,5.85889,3819.0,3818.9,0.1073649]
[1717286873245,5.85889,3819.0,3818.9,0.705]
[1717286873482,5.85889,3819.0,3818.9,0.8122697]
[1717286873923,5.85889,3819.0,3818.9,0.705]
[1717286874325,3.36849,3819.0,3818.9,0.705]
[1717286877568,5.72629,3819.0,3818.9,0.705]
[1717286880277,2.61869,3818.7,3818.6,13.0766048]
[1717286880447,3.36869,3818.7,3818.6,13.7816048]
[1717286880654,3.36869,3818.7,3818.6,13.88677565]
[1717286881252,3.36869,3818.7,3818.6,15.27545322]
[1717286882970,3.36869,3818.7,3818.6,14.57045322]
[1717286883180,3.36869,3818.7,3818.6,13.88677565]
[1717286884369,5.72649,3818.7,3818.6,13.88677565]
[1717286888674,3.36869,3818.7,3818.6,13.88677565]
[1717286891478,3.36869,3818.7,3818.6,13.18177565]
[1717286891888,3.36869,3818.7,3818.6,13.88677565]
[1717286892305,3.36869,3818.7,3818.6,13.18177565]
[1717286892511,3.36869,3818.7,3818.6,13.88677565]
[1717286897518,3.36869,3818.7,3818.6,13.18177565]
[1717286897824,3.36869,3818.7,3818.6,13.88677565]
[1717286905044,0.75,3818.7,3818.6,13.88677565]
[1717286905948,3.36869,3818.7,3818.6,13.88677565]
[1717286930756,5.98738,3818.7,3818.6,13.18177565]
[1717286930971,11.09228771,3818.7,3818.6,13.18177565]
[1717286931171,10.526069,3818.7,3818.6,13.18177565]
[1717286931485,11.09229954,3818.7,3818.6,13.18177565]
[1717286931646,11.09229954,3818.7,3818.6,13.0766048]
[1717286931853,11.09229954,3818.7,3818.6,13.18199378]
[1717286933427,10.526069,3818.7,3818.6,13.18199378]
[1717286933575,8.93348,3818.7,3818.6,13.18199378]
[1717286938390,3.91869,3818.7,3818.6,13.88699378]
[1717286939682,9.00728,3818.7,3818.6,13.18199378]
[1717286942018,17.21936777,3818.7,3818.6,13.18199378]
[1717286942584,17.21936777,3818.7,3818.6,13.0766048]
[1717286942913,17.21936777,3818.7,3818.6,13.1714718]
[1717286943116,19.67330455,3818.7,3818.6,13.1714718]
[1717286944414,18.96830455,3818.7,3818.6,13.1714718]
[1717286945604,18.402046,3818.7,3818.6,13.1714718]
[1717286945920,18.96837588,3818.7,3818.6,13.1714718]
[1717286948125,18.96837586,3818.7,3818.6,13.1714718]
[1717286949825,19.67337586,3818.7,3818.6,13.1714718]
[1717286952531,18.96837586,3818.7,3818.6,13.1714718]
[1717286953525,15.19229986,3818.7,3818.6,13.1714718]
[1717286954030,15.19227611,3818.7,3818.6,13.0766048]
[1717286954393,15.19227611,3818.7,3818.6,13.17187174]
[1717286960230,17.21941533,3818.7,3818.6,13.17187174]
[1717286960429,19.69992939,3818.7,3818.6,13.17187174]
[1717286960632,19.69992939,3818.7,3818.6,13.0766048]
[1717286960935,19.69992939,3818.7,3818.6,13.17186358]
[1717286961330,19.69996401,3818.7,3818.6,13.17186358]
[1717286962738,18.99496401,3818.7,3818.6,13.17186358]
[1717286962903,19.69996401,3818.7,3818.6,13.17186358]
[1717286966038,18.99496401,3818.7,3818.6,13.17186358]
[1717286969438,19.69996401,3818.7,3818.6,13.17186358]
[1717286982664,18.99496401,3818.7,3818.6,13.17186358]
[1717286982833,19.69996401,3818.7,3818.6,13.17186358]
[1717286983962,18.99496401,3818.7,3818.6,13.17186358]
[1717286984336,22.31865401,3818.7,3818.6,13.17186358]
[1717286985552,22.31865401,3818.7,3818.6,12.70786358]
[1717286986581,21.61365401,3818.7,3818.6,12.70786358]
[1717286986959,22.31865401,3818.7,3818.6,12.70786358]
[1717286988569,22.31865401,3818.7,3818.6,10.9864236]
[1717286989803,22.31865401,3818.7,3818.6,10.43930633]
[1717286991569,25.07565401,3818.7,3818.6,9.43199718]
[1717286991764,25.07565401,3818.7,3818.6,8.81480161]
[1717286991966,25.07565401,3818.7,3818.6,8.71954283]
[1717286992262,37.99943801,3818.7,3818.6,8.71954283]
[1717286992667,37.9995032,3818.7,3818.6,8.71954283]
[1717286993258,37.9995032,3818.7,3818.6,8.45154283]
[1717286993472,45.3195032,3818.7,3818.6,8.45154283]
[1717286993676,45.3195032,3818.7,3818.6,7.72554283]
[1717286994003,43.1117382,3818.7,3818.6,7.72554283]
[1717286994202,43.1117382,3818.7,3818.6,2.06418365]
[1717286994496,43.1117382,3818.7,3818.6,0.69263794]
[1717286997001,45.2859192,3818.7,3818.6,0.69263794]
[1717287001667,44.5809192,3818.7,3818.6,0.69263794]
[1717287001980,44.4548112,3818.7,3818.6,0.69263794]
[1717287002862,44.45485241,3818.7,3818.6,0.69263794]
[1717287003673,43.74985241,3818.7,3818.6,0.69263794]
[1717287003897,44.45485241,3818.7,3818.6,0.69263794]
[1717287004415,44.16587341,3818.7,3818.6,0.69263794]
[1717287006716,43.83285241,3818.7,3818.6,0.69263794]
[1717287007685,32.39576041,3818.7,3818.6,0.69263794]
[1717287007887,42.52149241,3818.7,3818.6,0.69263794]
[1717287008387,42.30961841,3818.7,3818.6,0.69263794]
[1717287008882,42.30961841,3818.7,3818.6,0.41125378]
[1717287008883,32.41306041,3818.7,3818.6,0.41125378]
[1717287009110,40.86539441,3818.7,3818.6,0.41125378]
[1717287010783,39.66076241,3818.7,3818.6,0.41125378]
[1717287011439,33.21801741,3818.7,3818.6,0.16225378]
[1717287011640,26.61886041,3818.7,3818.6,0.16225378]
[1717287012047,20.43334635,3818.7,3818.6,0.16225378]
[1717287012251,21.13834635,3818.7,3818.6,0.16225378]
[1717287012921,18.51965635,3818.7,3818.6,0.16225378]
[1717287013329,21.51965635,3818.7,3818.6,0.16225378]
[1717287013911,20.81465635,3818.7,3818.6,2.55955378]
[1717287014112,21.36465635,3818.7,3818.6,2.55955378]
[1717287015846,24.30319451,3818.7,3818.6,0.16225378]
[1717287017812,24.30311908,3818.7,3818.6,0.16225378]
[1717287019926,26.70131908,3818.7,3818.6,0.16225378]
[1717287022696,32.07700908,3818.7,3818.6,1e-08]
[1717287023979,32.07707533,3818.7,3818.6,1e-08]
[1717287028874,31.37207533,3818.7,3818.6,1e-08]
[1717287029062,32.07707533,3818.7,3818.6,1e-08]
[1717287046197,31.37207533,3818.7,3818.6,1e-08]
[1717287046491,32.07707533,3818.7,3818.6,1e-08]
[1717287046863,26.21687533,3818.7,3818.6,1e-08]
[1717287047062,26.92187533,3818.7,3818.6,1e-08]
[1717287047260,29.67887533,3818.7,3818.6,1e-08]
[1717287060728,32.29756533,3818.7,3818.6,1e-08]
[1717287062501,29.67887533,3818.7,3818.6,1e-08]
[1717287062689,28.97387533,3818.7,3818.6,1e-08]
[1717287062888,29.67887533,3818.7,3818.6,1e-08]
[1717287065897,32.29756533,3818.7,3818.6,1e-08]
[1717287068826,29.67887533,3818.7,3818.6,1e-08]
[1717287069302,29.67890096,3818.7,3818.6,1e-08]
[1717287069500,28.97390096,3818.7,3818.6,1e-08]
[1717287069694,26.92190096,3818.7,3818.6,1e-08]
[1717287069890,26.21690096,3818.7,3818.6,2.38970001]
[1717287070208,23.43332319,3818.7,3818.6,2.38970001]
[1717287070524,21.51963319,3818.7,3818.6,2.38970001]
[1717287070915,18.51963319,3818.7,3818.6,2.38970001]
[1717287071222,16.49249397,3818.7,3818.6,2.38970001]
[1717287072203,19.49249397,3818.7,3818.6,2.38970001]
[1717287072841,20.04249397,3818.7,3818.6,2.38970001]
[1717287075295,20.04249397,3818.7,3818.6,2.62867001]
[1717287078301,17.42380397,3818.7,3818.6,2.62867001]
[1717287078501,16.85738,3818.7,3818.6,2.62867001]
[1717287083944,16.85738,3818.7,3818.6,2.38970001]
[1717287084247,17.56238,3818.7,3818.6,1e-08]
[1717287084444,20.18107,3818.7,3818.6,1e-08]
[1717287088950,20.18107,3818.7,3818.6,2.27170001]
[1717287089332,20.7473761,3818.7,3818.6,2.27170001]
[1717287090279,20.7473761,3818.7,3818.6,1e-08]
[1717287090951,20.0423761,3818.7,3818.6,1e-08]
[1717287091147,20.7473761,3818.7,3818.6,1e-08]
[1717287091457,24.39378293,3818.7,3818.6,1e-08]
[1717287103773,27.01247293,3818.7,3818.6,1e-08]
[1717287104627,29.38727293,3818.7,3818.6,1e-08]
[1717287111790,28.68227293,3818.7,3818.6,1e-08]
[1717287111999,29.38727293,3818.7,3818.6,1e-08]
[1717287119013,28.68227293,3818.7,3818.6,1e-08]
[1717287119317,29.38727293,3818.7,3818.6,1e-08]
[1717287120516,29.38742493,3818.7,3818.6,1e-08]
[1717287121013,27.01262493,3818.7,3818.6,1e-08]
[1717287121717,27.01260978,3818.7,3818.6,1e-08]
[1717287122104,27.01260766,3818.7,3818.6,1e-08]
[1717287122415,26.30760766,3818.7,3818.6,1e-08]
[1717287122584,24.39391766,3818.7,3818.6,1e-08]
[1717287122785,23.68891766,3818.7,3818.6,1e-08]
[1717287123086,24.39391766,3818.7,3818.6,1e-08]
[1717287123516,22.06965005,3818.7,3818.6,1e-08]
[1717287126912,22.06962844,3818.7,3818.6,1e-08]
[1717287127507,24.68831844,3818.7,3818.6,1e-08]
[1717287128220,24.68831989,3818.7,3818.6,1e-08]
[1717287129220,24.68831993,3818.7,3818.6,1e-08]
[1717287129445,27.18374235,3818.7,3818.6,1e-08]
[1717287133947,7.8579,3817.8,3817.7,2.4922]
[1717287134152,12.73003922,3817.8,3817.7,2.4922]
[1717287134462,14.04645993,3817.8,3817.7,2.4922]
[1717287136683,12.72432071,3817.8,3817.7,2.4922]
[1717287139779,12.72432071,3817.8,3817.7,2.74142]
[1717287141072,10.10502071,3817.8,3817.7,2.74142]
[1717287141475,10.10502071,3817.8,3817.7,2.4922]
[1717287148512,12.72432071,3817.8,3817.7,2.4922]
[1717287148729,2.61972,3817.2,3817.1,0.0661408]
[1717287149011,3.16972,3817.2,3817.1,0.0661408]
[1717287149231,3.16972,3817.2,3817.1,2.5013408]
[1717287149377,3.16972,3817.2,3817.1,2.82197488]
[1717287149579,3.16972,3817.2,3817.1,2.94759106]
[1717287150537,3.16972,3817.2,3817.1,3.65259106]
[1717287152049,3.16972,3817.2,3817.1,2.94759106]
[1717287155250,3.16972,3817.2,3817.1,3.65259106]
[1717287158187,3.16972,3817.2,3817.1,2.94759106]
[1717287158398,3.16972,3817.2,3817.1,2.62695698]
[1717287159641,5.78944,3817.2,3817.1,2.62695698]
[1717287165854,5.78944,3817.2,3817.1,0.19175698]
[1717287167615,6.35588802,3817.2,3817.1,0.19175698]
[1717287168452,5.78944,3817.2,3817.1,0.19175698]
[1717287171389,9.35589247,3817.2,3817.1,0.0661408]
[1717287171888,10.59029304,3817.2,3817.1,0.0661408]
[1717287175102,9.35591379,3817.2,3817.1,0.0661408]
[1717287176487,8.80591379,3817.2,3817.1,0.7711408]
[1717287176703,8.80591379,3817.2,3817.1,3.2173408]
[1717287176894,8.23944,3817.2,3817.1,3.2173408]
[1717287177863,8.78944,3817.2,3817.1,3.2173408]
[1717287178067,8.23944,3817.2,3817.1,3.2173408]
[1717287178463,8.78944,3817.2,3817.1,3.2173408]
[1717287181107,8.78944,3817.2,3817.1,0.0661408]
[1717287181407,8.78944,3817.2,3817.1,0.19138053]
[1717287181909,9.35590748,3817.2,3817.1,0.19138053]
[1717287182992,8.78944,3817.2,3817.1,0.19138053]
[1717287183518,6.16972,3817.2,3817.1,0.19138053]
[1717287187574,6.16972,3817.2,3817.1,0.89638053]
[1717287193218,2.61972,3817.2,3817.1,3.51443858]
[1717287193416,2.61972,3817.2,3817.1,2.80943858]
[1717287193712,2.61972,3817.2,3817.1,0.89638053]
[1717287193924,3.16972,3817.2,3817.1,0.19138053]
[1717287196010,3.16972,3817.2,3817.1,0.0661408]
[1717287196195,3.16972,3817.2,3817.1,0.18709843]
[1717287197193,6.16972,3817.2,3817.1,0.18709843]
[1717287197887,8.78944,3817.2,3817.1,0.18709843]
[1717287198205,8.78944,3817.2,3817.1,0.0661408]
[1717287199207,9.930336,3817.2,3817.1,0.0661408]
[1717287199437,12.92568718,3817.2,3817.1,0.0661408]
[1717287203740,10.49678718,3817.2,3817.1,0.0661408]
[1717287214749,9.35589118,3817.2,3817.1,0.0661408]
[1717287222867,15.10621118,3817.2,3817.1,0.0661408]
[1717287223442,16.4283504,3817.2,3817.1,0.0661408]
[1717287225175,15.86189922,3817.2,3817.1,0.0661408]
[1717287225483,16.42846921,3817.2,3817.1,0.0661408]
[1717287225888,18.07131613,3817.2,3817.1,0.0661408]
[1717287226252,27.85637613,3817.2,3817.1,0.0661408]
[1717287226763,26.90802913,3817.2,3817.1,0.0661408]
[1717287227146,26.90808008,3817.2,3817.1,0.0661408]
[1717287227946,26.82640708,3817.2,3817.1,0.0661408]
[1717287228156,2.62068,3815.8,3815.7,2.3278]
[1717287228358,2.62068,3815.8,3815.3,0.0155298]
[1717287228359,2.62095,3815.4,3815.3,2.3433298]
[1717287228599,3.37095,3815.4,3815.3,3.0483298]
[1717287229762,2.62095,3815.4,3815.3,3.0483298]
[1717287230084,2.62095,3815.4,3815.3,3.35316278]
[1717287236229,2.62073,3815.8,3815.4,2.3217]
[1717287236517,0.75,3815.6,3815.4,2.3217]
[1717287236724,0.75,3815.6,3815.5,0.705]
[1717287236894,0.75,3815.6,3815.5,1.03970628]
[1717287237591,0.75,3815.6,3815.5,3.36140628]
[1717287237935,7.32,3816.1,3815.6,2.3217]
[1717287238089,7.32,3816.1,3816.0,3.0267]
[1717287238737,2.62047,3816.2,3816.0,3.0267]
[1717287239028,2.62047,3816.2,3816.1,2.62437]
[1717287242695,2.62047,3816.2,3816.1,2.74612969]
[1717287243191,3.37047,3816.2,3816.1,0.42442969]
[1717287243306,3.37047,3816.2,3816.1,0.82675969]
[1717287243636,3.37047,3816.2,3816.1,0.705]
[1717287247216,3.37047,3816.2,3816.1,0.82650744]
[1717287253854,3.37047,3816.2,3816.1,0.12150744]
[1717287254160,3.37047,3816.2,3816.1,0.705]
[1717287254520,3.37047,3816.2,3816.1,0.82662134]
[1717287254733,3.37047,3816.2,3816.1,0.705]
[1717287255563,3.37047,3816.2,3816.1,0.82662134]
[1717287255794,3.37047,3816.2,3816.1,0.705]
[1717287258921,2.62068,3815.8,3815.7,2.3182]
[1717287259217,2.62068,3815.8,3815.7,0.23182]
[1717287259362,2.62068,3815.8,3815.7,0.705]
[1717287263861,2.62068,3815.8,3815.4,2.3182]
[1717287264108,2.62068,3815.8,3815.7,0.705]
[1717287267513,2.62088,3815.5,3815.3,0.0155298]
[1717287268012,3.37088,3815.5,3815.3,0.7205298]
[1717287274096,2.62088,3815.5,3815.3,0.7205298]
[1717287274297,2.62088,3815.5,3815.3,3.1527298]
[1717287274500,2.62088,3815.5,3815.4,0.4374199]
[1717287274719,2.62088,3815.5,3815.4,1.1424199]
[1717287274923,2.62088,3815.5,3815.4,0.82714692]
[1717287281145,3.37069,3815.8,3815.4,0.82714692]
[1717287281347,3.37069,3815.8,3815.7,0.705]
[1717287284471,2.62047,3816.1,3815.7,3.1372]
[1717287284671,0.75,3816.0,3815.7,2.73971021]
[1717287284840,0.75,3816.0,3815.9,0.705]
[1717287289705,0.75,3816.0,3815.9,0.82685833]
[1717287294506,2.62027,3816.4,3815.9,0.82685833]
[1717287294697,2.62027,3816.4,3816.3,0.705]
[1717287294897,3.37027,3816.4,3816.3,0.705]
[1717287303467,0.75,3816.4,3816.3,0.705]
[1717287303769,5.62005,3816.8,3816.3,0.705]
[1717287303969,5.62005,3816.8,3816.7,0.705]
[1717287304259,6.37005,3816.8,3816.7,0.705]